bitfinex/quotes_BTCUSD_20250204
["timestamp","ask_amount","ask_price","bid_price","bid_amount"]
[1738700777563,0.01,98039.0,98025.0,0.00122397]
[1738700777760,1.5,98028.0,98024.0,0.09088601]
[1738700777927,0.10238506,98027.0,98024.0,0.09088601]
[1738700778331,1.5,98028.0,98024.0,0.09088601]
[1738700778862,1.49964156,98028.0,98007.0,0.00122408]
[1738700779223,1.49964156,98028.0,98008.0,0.00122408]
[1738700779376,1.49964156,98028.0,98008.0,0.00122414]
[1738700780560,1.49964156,98028.0,98004.0,0.00122408]
[1738700780770,1.49964156,98028.0,98009.0,0.00122408]
[1738700780908,1.49964156,98028.0,98010.0,0.20406]
[1738700781123,0.01,98030.0,98005.0,0.10238506]
[1738700781324,0.01,98030.0,98007.0,0.153049]
[1738700781542,0.01,98030.0,98008.0,0.00122406]
[1738700781751,0.01,98031.0,98008.0,0.00122406]
[1738700781924,0.01,98042.0,98009.0,0.10238506]
[1738700782122,0.01,98037.0,98016.0,0.153035]
[1738700782387,0.10238506,98036.0,98017.0,0.00122397]
[1738700782546,0.10238506,98036.0,97996.0,0.204088]
[1738700782547,0.01,98037.0,98021.0,0.153027]
[1738700782747,1.5,98074.0,98022.0,0.00122397]
[1738700782945,0.01,98048.0,98023.0,0.00122375]
[1738700783168,0.10238506,98057.0,98024.0,0.14486161]
[1738700783369,0.01,98060.0,98025.0,0.15122378]
[1738700783554,0.01,98058.0,98044.0,0.152992]
[1738700783749,0.152954,98069.0,98045.0,0.00122371]
[1738700783961,0.01,98059.0,98024.0,0.04247655]
[1738700784160,0.20401,98035.0,98000.0,0.33811338]
[1738700784362,0.152997,98041.0,98017.0,0.153034]
[1738700784594,0.01,98038.0,98018.0,0.001224]
[1738700784931,0.01,98038.0,98004.0,0.10238506]
[1738700784932,0.01,98038.0,98016.0,0.001224]
[1738700785142,0.01,98038.0,98024.0,0.153023]
[1738700785344,0.01,98038.0,98005.0,0.15]
[1738700785551,0.01,98038.0,98007.0,0.15]
[1738700785699,0.203955,98061.0,98020.0,0.32115667]
[1738700785700,0.01,98044.0,98020.0,0.32115667]
[1738700785900,0.01,98041.0,98021.0,0.00122385]
[1738700786108,0.11238506,98041.0,98022.0,0.0012239]
[1738700786289,0.01,98043.0,98030.0,0.153013]
[1738700786485,0.01,98041.0,98031.0,0.00122389]
[1738700786704,0.01,98041.0,98023.0,0.204033]
[1738700786705,0.01,98051.0,98032.0,0.00122389]
[1738700786910,0.01,98051.0,98023.0,0.00122378]
[1738700787118,0.01,98051.0,98026.0,0.204025]
[1738700787354,0.01,98051.0,98027.0,0.00122382]
[1738700787561,0.203935,98071.0,98029.0,0.15]
[1738700787806,0.1328,98080.0,98024.0,0.04723804]
[1738700787807,0.1328,98080.0,98060.0,0.152966]
[1738700788048,0.09141085,98078.0,98067.0,0.152955]
[1738700788249,0.09141085,98078.0,98040.0,0.32115667]
[1738700788250,0.08141085,98068.0,98047.0,0.203983]
[1738700788578,0.162946,98074.0,98048.0,0.10360867]
[1738700788784,0.01,98074.0,98049.0,0.152984]
[1738700789007,0.01,98074.0,98050.0,0.00122352]
[1738700789198,0.01,98074.0,98051.0,0.10360858]
[1738700789410,0.01,98097.0,98083.0,0.15293]
[1738700789566,0.08141085,98098.0,98057.0,0.15]
[1738700789567,0.08141085,98088.0,98057.0,0.15]
[1738700789769,0.08141085,98108.0,98071.0,0.353933]
[1738700790123,0.08141085,98108.0,98075.0,0.15]
[1738700790333,0.08141085,98108.0,98077.0,0.15]
[1738700790473,0.08141085,98108.0,98105.0,0.152896]
[1738700790672,0.08141085,98108.0,98082.0,0.00122305]
[1738700790877,0.01,98115.0,98084.0,0.15]
[1738700791208,0.05364969,98091.0,98086.0,0.146089]
[1738700791413,0.05364969,98091.0,98087.0,0.10238506]
[1738700791752,0.01,98079.0,98054.0,0.152975]
[1738700792099,0.01,98051.0,98013.0,0.0818]
[1738700792276,1.5,98028.0,98014.0,0.10360888]
[1738700792478,1.5,98028.0,98027.0,0.153019]
[1738700792673,0.08141085,98064.0,98027.0,0.10238506]
[1738700792851,0.08141085,98053.0,98028.0,0.10360868]
[1738700793050,0.08141085,98053.0,98051.0,0.15298]
[1738700793421,0.08141085,98053.0,98029.0,0.10238506]
[1738700793623,0.32115667,98070.0,98054.0,0.152976]
[1738700793868,0.08141085,98064.0,98055.0,0.00122358]
[1738700794071,0.32115667,98070.0,98056.0,0.00122362]
[1738700794281,0.32115667,98070.0,98030.0,0.16023851]
[1738700794282,0.01,98077.0,98038.0,0.15]
[1738700794627,0.08141085,98076.0,98044.0,0.15]
[1738700794826,1.58141085,98076.0,98059.0,0.203958]
[1738700795108,0.08141085,98076.0,98058.0,0.152969]
[1738700795304,0.08141085,98076.0,98058.0,0.15297]
[1738700795483,0.08141085,98076.0,98061.0,0.15276341]
[1738700795707,0.18379591,98076.0,98062.0,0.00122349]
[1738700795917,1.51,98077.0,98047.0,0.15]
[1738700796068,0.01,98067.0,98030.0,0.01023851]
[1738700796268,0.01,98067.0,98031.0,0.10238506]
[1738700796507,0.01,98067.0,98044.0,0.152991]
[1738700796725,0.162956,98067.0,98046.0,0.152989]
[1738700796928,0.152981,98051.0,98031.0,0.10238506]
[1738700797157,0.01,98058.0,98031.0,0.13302597]
[1738700797363,0.01,98058.0,98031.0,0.10238506]
[1738700797506,0.32115667,98050.0,98006.0,0.0001068]
[1738700797710,0.152996,98042.0,98008.0,0.204064]
[1738700797934,0.203981,98048.0,98029.0,0.0001068]
[1738700798124,0.01,98050.0,98036.0,0.153003]
[1738700798312,0.01,98050.0,98029.0,0.0001068]
[1738700798518,0.01,98050.0,98035.0,0.153005]
[1738700798714,0.01,98050.0,98029.0,0.0001068]
[1738700798962,0.01,98050.0,98034.0,0.153008]
[1738700799159,0.01,98050.0,98035.0,0.0012238]
[1738700799362,0.02824608,98057.0,98036.0,0.10238506]
[1738700799699,0.02824608,98057.0,98055.0,0.152974]
[1738700799838,0.02824608,98057.0,98056.0,0.00122352]
[1738700800020,0.02824608,98057.0,98056.0,0.10008347]
[1738700800216,0.02824608,98057.0,98056.0,0.16618342]
[1738700800890,0.02824608,98057.0,98056.0,0.16738669]
[1738700801292,0.02824608,98057.0,98056.0,0.31738669]
[1738700801431,0.02824608,98057.0,98056.0,0.31618342]
[1738700802050,0.02824608,98057.0,98056.0,0.34918342]
[1738700802629,0.02824608,98057.0,98056.0,0.32618342]
[1738700802830,0.02824608,98057.0,98056.0,0.34918342]
[1738700803193,0.02540361,98098.0,98070.0,0.01]
[1738700803400,0.02540361,98098.0,98097.0,0.302909]
[1738700803555,0.02540361,98098.0,98097.0,0.3535882]
[1738700803969,0.02540361,98098.0,98097.0,0.0506792]
[1738700804199,0.02540361,98098.0,98096.0,0.152909]
[1738700804408,0.02540361,98098.0,98082.0,0.20391]
[1738700804605,0.02540361,98098.0,98069.0,0.0768]
[1738700804930,0.0003,98090.0,98068.0,0.152954]
[1738700805129,0.02540361,98098.0,98089.0,0.08141085]
[1738700805403,0.02540361,98098.0,98097.0,0.152909]
[1738700805554,0.02540361,98098.0,98097.0,0.15411072]
[1738700805754,0.02540361,98098.0,98097.0,0.152909]
[1738700806152,0.02540361,98098.0,98097.0,0.25529406]
[1738700808279,0.02540361,98098.0,98097.0,0.152909]
[1738700808522,0.02540361,98098.0,98097.0,0.20979151]
[1738700808695,0.02540361,98098.0,98097.0,0.152909]
[1738700808895,0.02540361,98098.0,98097.0,0.2564961]
[1738700809125,0.02540361,98098.0,98097.0,0.40529406]
[1738700812367,6.1e-07,98098.0,98097.0,0.41499406]
[1738700812569,6.1e-07,98098.0,98097.0,0.50192097]
[1738700812570,8.9e-07,98098.0,98097.0,0.50192097]
[1738700812771,8.9e-07,98098.0,98097.0,0.58302097]
[1738700813173,8.9e-07,98098.0,98097.0,0.57332097]
[1738700813479,8.9e-07,98098.0,98097.0,0.58302097]
[1738700813784,0.00022428,98109.0,98101.0,0.0097]
[1738700813990,0.00022428,98109.0,98108.0,0.40527706]
[1738700814916,0.00022428,98109.0,98108.0,0.41474541]
[1738700815882,0.00022428,98109.0,98108.0,0.16236035]
[1738700816146,0.00022428,98109.0,98108.0,0.25647855]
[1738700816347,0.00022428,98109.0,98108.0,0.25527706]
[1738700816503,0.00022428,98109.0,98108.0,0.48082769]
[1738700817128,0.01,98144.0,98109.0,0.15]
[1738700817331,0.01,98144.0,98137.0,0.152846]
[1738700817546,0.0003,98157.0,98138.0,0.10358594]
[1738700817721,0.01,98158.0,98148.0,0.152829]
[1738700817933,0.0003,98151.0,98121.0,0.02074681]
[1738700818141,0.0003,98144.0,98125.0,0.15]
[1738700818401,0.0003,98144.0,98127.0,0.203817]
[1738700818571,0.0003,98144.0,98128.0,0.10358603]
[1738700818898,0.0003,98140.0,98128.0,0.00120097]
[1738700819069,0.0003,98139.0,98119.0,0.00120112]
[1738700819279,0.0003,98140.0,98135.0,0.15285]
[1738700819477,0.01,98146.0,98136.0,0.00120103]
[1738700819684,0.01,98146.0,98120.0,0.11267267]
[1738700820038,0.00052428,98150.0,98144.0,0.152835]
[1738700820251,0.00022428,98150.0,98145.0,0.00120064]
[1738700820465,0.00022428,98150.0,98099.0,0.0097]
[1738700820466,0.0103,98132.0,98090.0,0.32115667]
[1738700820634,0.0103,98132.0,98123.0,0.203825]
[1738700820851,0.01,98142.0,98124.0,0.00120122]
[1738700821072,0.00052428,98150.0,98144.0,0.152835]
[1738700821275,0.00052428,98150.0,98125.0,0.203821]
[1738700821276,0.00022428,98150.0,98149.0,0.152828]
[1738700821480,0.00022428,98150.0,98149.0,0.01540287]
[1738700821673,0.00022428,98150.0,98149.0,0.11898859]
[1738700822380,0.00022428,98150.0,98149.0,0.01540287]
[1738700822582,0.00022428,98150.0,98120.0,0.32115667]
[1738700822583,0.01,98148.0,98093.0,0.0495]
[1738700822854,0.01,98132.0,98107.0,0.10238506]
[1738700823089,0.01,98128.0,98108.0,0.00120117]
[1738700823298,0.0478,98147.0,98112.0,0.10238506]
[1738700823502,0.00022428,98150.0,98118.0,0.25238506]
[1738700823705,0.00022428,98150.0,98110.0,0.32115667]
[1738700823706,0.08141085,98149.0,98122.0,0.10238506]
[1738700823925,0.00022428,98150.0,98128.0,0.10238506]
[1738700824130,0.00022428,98150.0,98147.0,0.152831]
[1738700824428,0.00022428,98150.0,98148.0,0.25521406]
[1738700825187,0.00022428,98150.0,98148.0,0.32149137]
[1738700825638,0.00022428,98150.0,98121.0,0.203829]
[1738700825792,0.01,98128.0,98100.0,0.02072033]
[1738700825998,0.0003,98120.0,98101.0,0.10238506]
[1738700826194,0.01,98125.0,98122.0,0.15287]
[1738700826424,0.01,98125.0,98101.0,0.10238506]
[1738700826628,0.0003,98115.0,98101.0,0.10238506]
[1738700826845,0.0003,98121.0,98102.0,0.00120141]
[1738700827203,0.0003,98121.0,98117.0,0.152878]
[1738700827379,0.0462,98131.0,98104.0,0.00120156]
[1738700827380,0.0003,98120.0,98104.0,0.00120156]
[1738700827580,0.0003,98120.0,98105.0,0.13433298]
[1738700827793,0.0003,98127.0,98122.0,0.152869]
[1738700828010,0.0003,98129.0,98127.0,0.152861]
[1738700828200,0.0003,98135.0,98128.0,0.0012012]
[1738700828405,0.0003,98138.0,98129.0,0.00120113]
[1738700828620,0.01,98138.0,98130.0,0.10238506]
[1738700828824,0.01,98138.0,98110.0,0.203851]
[1738700828825,0.0003,98133.0,98111.0,0.00120107]
[1738700829037,0.0003,98133.0,98112.0,0.30743418]
[1738700829286,0.08141085,98148.0,98103.0,0.203866]
[1738700829287,0.0003,98122.0,98103.0,0.203866]
[1738700829468,0.0003,98122.0,98104.0,0.10358657]
[1738700829469,0.0003,98120.0,98104.0,0.10358657]
[1738700829669,0.0003,98113.0,98081.0,0.00967703]
[1738700829876,0.0003,98113.0,98082.0,0.10238506]
[1738700829877,0.0003,98099.0,98082.0,0.10238506]
[1738700830080,0.0003,98099.0,98070.0,0.00022428]
[1738700830081,0.0003,98084.0,98073.0,0.00120247]
[1738700830292,0.0003,98082.0,98074.0,0.0012026]
[1738700830502,0.0003,98078.0,98071.0,0.203933]
[1738700830708,0.0003,98078.0,98070.0,0.00022428]
[1738700830709,0.0003,98087.0,98075.0,0.00120271]
[1738700830914,0.01,98087.0,98083.0,0.152931]
[1738700831120,0.01,98087.0,98076.0,0.10238506]
[1738700831121,0.01,98091.0,98085.0,0.152928]
[1738700831333,0.0003,98082.0,98059.0,0.00950982]
[1738700831546,0.0003,98082.0,98079.0,0.0012025]
[1738700831748,0.0003,98095.0,98080.0,0.10238506]
[1738700831957,0.0103,98100.0,98081.0,0.00120227]
[1738700832128,0.0003,98100.0,98097.0,0.152909]
[1738700832332,0.0003,98096.0,98082.0,0.10238506]
[1738700832543,0.01,98097.0,98083.0,0.203908]
[1738700832745,0.0003,98099.0,98084.0,0.13301437]
[1738700832917,0.0003,98104.0,98084.0,0.13301437]
[1738700833127,0.0003,98115.0,98106.0,0.152895]
[1738700833320,0.0003,98107.0,98100.0,0.152904]
[1738700833525,0.01,98105.0,98101.0,0.203871]
[1738700833761,0.0003,98115.0,98110.0,0.152888]
[1738700833908,0.0103,98105.0,98070.0,0.00022428]
[1738700834108,0.01,98083.0,98073.0,0.10238506]
[1738700834331,0.01,98071.0,98070.0,0.00022428]
[1738700834772,0.01,98073.0,98072.0,0.152948]
[1738700835013,0.0003,98081.0,98072.0,0.00120291]
[1738700835208,0.0003,98081.0,98070.0,0.00022428]
[1738700835209,0.0103,98081.0,98073.0,0.00120286]
[1738700835411,0.0476,98093.0,98084.0,0.152929]
[1738700835412,0.0003,98090.0,98084.0,0.152929]
[1738700835541,0.01,98088.0,98085.0,0.00120264]
[1738700835744,0.0003,98096.0,98095.0,0.152912]
[1738700836106,0.0003,98105.0,98100.0,0.152905]
[1738700836253,0.0003,98101.0,98088.0,0.00120217]
[1738700836454,0.01,98098.0,98089.0,0.31783995]
[1738700836666,0.0003,98092.0,98076.0,0.203921]
[1738700836860,0.01,98098.0,98077.0,0.10238506]
[1738700836861,0.0003,98086.0,98077.0,0.10238506]
[1738700837162,0.0003,98086.0,98070.0,0.00022428]
[1738700837163,0.0003,98081.0,98078.0,0.00120259]
[1738700837392,0.01,98091.0,98079.0,0.10238506]
[1738700837625,0.0003,98100.0,98080.0,0.00120233]
[1738700837758,0.0003,98098.0,98081.0,0.11394596]
[1738700838134,0.00943177,98111.0,98081.0,0.10238506]
[1738700838135,0.01,98091.0,98081.0,0.10238506]
[1738700838329,0.0003,98088.0,98078.0,0.203917]
[1738700838547,0.0003,98082.0,98079.0,0.15413966]
[1738700838687,0.0003,98082.0,98070.0,0.00142702]
[1738700838905,0.0003,98076.0,98070.0,0.00022428]
[1738700839264,0.0003,98076.0,98071.0,0.154153]
[1738700839265,0.0103,98076.0,98071.0,0.154153]
[1738700839398,0.21340413,98088.0,98070.0,0.00022428]
[1738700839399,0.0003,98073.0,98070.0,0.00022428]
[1738700839599,0.18625,98071.0,98070.0,0.00022428]
[1738700839945,0.0103,98071.0,98070.0,0.00022428]
[1738700840257,0.0003,98079.0,98070.0,0.10260934]
[1738700840405,0.0003,98085.0,98082.0,0.203909]
[1738700840616,0.0003,98085.0,98083.0,0.00120266]
[1738700840820,0.0003,98071.0,98070.0,0.00022428]
[1738700841017,0.01,98072.0,98070.0,0.00022428]
[1738700841217,0.0003,98071.0,98070.0,0.00022428]
[1738700841423,0.15325,98071.0,98070.0,0.00022428]
[1738700841893,0.16325,98071.0,98070.0,0.00022428]
[1738700842089,0.18625,98071.0,98070.0,0.00022428]
[1738700843213,0.1959172,98071.0,98070.0,0.00022428]
[1738700843571,0.26330226,98071.0,98070.0,0.00022428]
[1738700844200,0.01,98076.0,98070.0,0.00022428]
[1738700844404,0.01,98075.0,98070.0,0.00022428]
[1738700844562,0.0778,98105.0,98071.0,0.02161937]
[1738700844759,0.01,98072.0,98071.0,0.00120304]
[1738700844967,0.16295,98071.0,98070.0,0.00022428]
[1738700845382,0.28833506,98071.0,98070.0,0.00022428]
[1738700845577,0.16295,98071.0,98070.0,0.00022428]
[1738700845825,0.16282926,98071.0,98070.0,0.00022428]
[1738700846030,0.16295,98071.0,98070.0,0.00022428]
[1738700846389,0.00954239,98073.0,98070.0,0.00022428]
[1738700846782,0.152936,98080.0,98070.0,0.00022428]
[1738700846981,0.01,98071.0,98070.0,0.00022428]
[1738700847184,0.203883,98096.0,98071.0,0.15295]
[1738700847185,0.16261235,98084.0,98071.0,0.15295]
[1738700847385,0.203891,98092.0,98072.0,0.0369143]
[1738700847510,0.152925,98087.0,98072.0,0.00120297]
[1738700847707,0.01,98080.0,98078.0,0.152938]
[1738700847910,0.417628,98129.0,98070.0,0.00022428]
[1738700847911,0.01,98089.0,98080.0,0.203915]
[1738700848192,0.01,98081.0,98080.0,0.152936]
[1738700848397,0.01,98081.0,98070.0,0.20415828]
[1738700848609,0.01,98081.0,98080.0,0.152936]
[1738700848818,0.203872,98101.0,98080.0,0.152936]
[1738700849024,0.203838,98117.0,98082.0,0.407822]
[1738700849228,0.01,98094.0,98083.0,0.10238506]
[1738700849440,0.01,98085.0,98084.0,0.15293]
[1738700849651,0.203859,98107.0,98084.0,0.12791657]
[1738700849893,0.01,98093.0,98085.0,0.10238506]
[1738700850105,0.0001068,98109.0,98092.0,0.152917]
[1738700850316,0.01,98087.0,98086.0,0.00120224]
[1738700850521,0.01,98087.0,98085.0,0.00120233]
[1738700850755,0.01,98084.0,98083.0,0.15293]
[1738700850987,0.01,98101.0,98083.0,0.11767806]
[1738700851189,0.0001068,98109.0,98084.0,0.10358703]
[1738700851385,0.01,98107.0,98085.0,0.203904]
[1738700851614,0.0001068,98109.0,98086.0,0.13466346]
[1738700851815,0.0001068,98109.0,98089.0,0.10238506]
[1738700852018,0.0001068,98109.0,98108.0,0.152892]
[1738700852223,0.0001068,98109.0,98108.0,0.25647831]
[1738700852431,0.0001068,98109.0,98108.0,0.152892]
[1738700852835,0.0001068,98109.0,98083.0,0.015293]
[1738700852985,0.0001068,98109.0,98091.0,0.00120177]
[1738700853191,0.0001068,98109.0,98108.0,0.152892]
[1738700853347,0.0001068,98109.0,98108.0,0.25647854]
[1738700853551,0.0001068,98109.0,98108.0,0.25527706]
[1738700853962,0.0001068,98109.0,98108.0,0.40527706]
[1738700854327,0.0001068,98109.0,98108.0,0.49606921]
[1738700854759,0.0001068,98109.0,98108.0,0.48657717]
[1738700855275,0.0001068,98109.0,98108.0,0.40527706]
[1738700855407,0.0001068,98109.0,98108.0,0.25527706]
[1738700856502,0.0001068,98109.0,98081.0,0.081]
[1738700856655,0.01,98101.0,98085.0,0.10358708]
[1738700856859,0.01,98101.0,98087.0,0.152924]
[1738700857064,0.01,98101.0,98088.0,0.10238506]
[1738700857307,0.01,98101.0,98093.0,0.152914]
[1738700857453,0.01,98101.0,98089.0,0.203896]
[1738700857655,0.0001068,98109.0,98091.0,0.203892]
[1738700857855,0.01,98101.0,98092.0,0.13740982]
[1738700858059,0.01,98101.0,98070.0,0.32138095]
[1738700858060,0.01,98101.0,98093.0,0.00120198]
[1738700858280,0.0001068,98109.0,98100.0,0.203872]
[1738700858499,0.0001068,98109.0,98101.0,0.0012019]
[1738700858700,0.0001068,98109.0,98102.0,0.00120188]
[1738700858902,0.01,98108.0,98104.0,0.152897]
[1738700859152,0.0001068,98109.0,98041.0,0.01]
[1738700859358,0.01,98095.0,98087.0,0.2039]
[1738700859581,0.01,98095.0,98083.0,0.15293]
[1738700859781,0.01,98095.0,98085.0,0.203904]
[1738700859911,0.01,98095.0,98087.0,0.152925]
[1738700860104,0.01,98102.0,98087.0,0.00120252]
[1738700860300,0.203875,98099.0,98075.0,0.10238506]
[1738700860524,0.01,98095.0,98086.0,0.152926]
[1738700860859,0.01,98095.0,98070.0,0.00022428]
[1738700861064,0.152941,98077.0,98070.0,0.00022428]
[1738700861282,0.01,98071.0,98070.0,0.00022428]
[1738700861642,0.01,98072.0,98070.0,0.00022428]
[1738700861840,0.01,98071.0,98070.0,0.00022428]
[1738700862239,0.033,98071.0,98070.0,0.00022428]
[1738700862664,0.13691462,98071.0,98070.0,0.00022428]
[1738700863832,0.023,98071.0,98070.0,0.00022428]
[1738700864078,0.152949,98072.0,98070.0,0.00022428]
[1738700864283,1.70392,98078.0,98070.0,0.00022428]
[1738700864490,0.203916,98080.0,98070.0,0.00022428]
[1738700864690,0.00942758,98086.0,98071.0,0.01652146]
[1738700865042,0.0015293,98099.0,98070.0,0.00022428]
[1738700865226,0.01,98071.0,98070.0,0.00022428]
[1738700865435,0.152933,98083.0,98070.0,0.15317428]
[1738700865638,0.023,98093.0,98070.0,0.00022428]
[1738700865852,0.15293,98084.0,98072.0,0.152948]
[1738700866051,0.01,98076.0,98073.0,0.00120302]
[1738700866237,0.01,98076.0,98074.0,0.152944]
[1738700866447,0.01,98078.0,98077.0,0.152941]
[1738700866656,0.0001069,98095.0,98088.0,0.152922]
[1738700866872,0.01,98084.0,98083.0,0.15293]
[1738700867072,0.01,98083.0,98081.0,0.152934]
[1738700867320,0.01,98083.0,98081.0,0.10238506]
[1738700867530,0.01,98083.0,98082.0,0.36708251]
[1738700867776,0.01,98083.0,98065.0,0.203944]
[1738700867777,0.01,98083.0,98040.0,0.32115667]
[1738700867983,0.163014,98030.0,97997.0,0.00983834]
[1738700868221,0.00994706,98030.0,97997.0,0.0001068]
[1738700868429,0.03294706,98030.0,97997.0,0.0001068]
[1738700868641,0.16299706,98007.0,97997.0,0.0001068]
[1738700868841,0.32115667,98020.0,98005.0,0.00120532]
[1738700868953,0.32115667,98040.0,98007.0,0.0012047]
[1738700869158,0.08141085,98034.0,98028.0,0.10238506]
[1738700869373,0.08141085,98034.0,98032.0,0.15301]
[1738700869591,0.08141085,98055.0,98033.0,0.19447521]
[1738700869802,0.08141085,98055.0,98044.0,0.152991]
[1738700870095,0.00994706,98050.0,98045.0,0.11768416]
[1738700870302,0.32115667,98060.0,98046.0,0.00120375]
[1738700870495,0.00994706,98049.0,98048.0,0.152985]
[1738700870800,0.32115667,98060.0,98048.0,0.10238506]
[1738700871004,0.32115667,98060.0,98049.0,0.11620973]
[1738700871208,0.32115667,98060.0,98049.0,0.01382467]
[1738700871209,0.00994706,98050.0,98049.0,0.01382467]
[1738700871521,0.00994706,98048.0,98035.0,0.204008]
[1738700871732,0.00994706,98048.0,98041.0,0.152996]
[1738700871856,0.00994706,98048.0,98042.0,0.10358885]
[1738700872090,0.00994706,98048.0,98002.0,0.204076]
[1738700872287,0.00994706,98042.0,98034.0,0.00120407]
[1738700872489,0.00994706,98040.0,98005.0,0.20407]
[1738700872692,0.00994706,98034.0,98010.0,0.153045]
[1738700872890,0.00994706,98034.0,97997.0,0.0001068]
[1738700872891,0.00994706,98034.0,98012.0,0.204056]
[1738700873149,0.00994706,98034.0,98003.0,0.204074]
[1738700873349,0.00994706,98034.0,97997.0,0.0001068]
[1738700873350,0.153012,98032.0,98010.0,0.153044]
[1738700873551,0.004187,98034.0,98011.0,0.14052331]
[1738700873752,0.004187,98035.0,98011.0,0.10358962]
[1738700873905,0.004187,98030.0,98028.0,0.153017]
[1738700874107,0.08141085,98047.0,98007.0,0.01091548]
[1738700874108,0.08559785,98047.0,98029.0,0.10238506]
[1738700874318,0.004187,98033.0,98029.0,0.10238506]
[1738700874608,0.004187,98037.0,98030.0,0.00120417]
[1738700874806,0.004187,98034.0,98032.0,0.153011]
[1738700875010,0.203967,98055.0,98033.0,0.10238506]
[1738700875212,0.004187,98053.0,98034.0,0.00120393]
[1738700875436,0.004187,98044.0,98043.0,0.152994]
[1738700875661,0.004187,98044.0,98043.0,0.10238506]
[1738700875896,0.004187,98044.0,98043.0,0.12792297]
[1738700876438,0.2136482,98066.0,98043.0,0.12792297]
[1738700876642,0.004187,98057.0,98056.0,0.152973]
[1738700876891,0.004187,98057.0,98044.0,0.10358867]
[1738700877093,0.004187,98052.0,98044.0,0.10358867]
[1738700877234,0.004187,98056.0,98055.0,0.152975]
[1738700877440,0.203926,98075.0,98055.0,0.10358855]
[1738700877639,0.004187,98057.0,98056.0,0.00120332]
[1738700877846,0.004187,98044.0,98010.0,0.16301085]
[1738700878044,0.004187,98038.0,98013.0,0.10238506]
[1738700878268,0.004187,98037.0,98014.0,0.02067534]
[1738700878470,0.004187,98037.0,98017.0,0.15]
[1738700878697,0.004187,98037.0,98018.0,0.10358919]
[1738700878896,0.004187,98037.0,98035.0,0.153005]
[1738700879255,0.004187,98037.0,98036.0,0.00120411]
[1738700879567,0.004187,98037.0,98033.0,0.15421216]
[1738700879786,0.004187,98037.0,98018.0,0.10238506]
[1738700879787,0.15302,98026.0,98010.0,0.153044]
[1738700880135,0.004187,98024.0,98013.0,0.15304]
[1738700880368,0.004187,98024.0,98014.0,0.10238506]
[1738700880769,0.004187,98022.0,98014.0,0.10238506]
[1738700880922,0.004187,98017.0,98014.0,0.10238506]
[1738700881130,0.004187,98035.0,98034.0,0.153007]
[1738700881338,0.004187,98043.0,98036.0,0.153003]
[1738700881541,0.004187,98044.0,98037.0,0.10238506]
[1738700881755,0.00975102,98063.0,98038.0,0.15]
[1738700882009,0.0454,98089.0,98046.0,0.10238506]
[1738700882187,0.08141085,98096.0,98053.0,0.20397]
[1738700882188,0.004187,98068.0,98053.0,0.20397]
[1738700882321,0.004187,98065.0,98054.0,0.10238506]
[1738700882529,0.004187,98065.0,98054.0,0.09238506]
[1738700882928,0.004187,98065.0,98059.0,0.152969]
[1738700883137,0.004187,98065.0,98054.0,0.152975]
[1738700883345,0.004187,98055.0,98022.0,0.00980862]
[1738700883549,0.004187,98054.0,98024.0,0.10238506]
[1738700883796,0.004187,98054.0,98003.0,0.005813]
[1738700883797,0.203919,98078.0,98036.0,0.25238506]
[1738700884000,0.08141085,98086.0,98020.0,0.13376586]
[1738700884001,0.004187,98060.0,98039.0,0.15]
[1738700884171,1.5,98077.0,98037.0,0.153002]
[1738700884172,0.152984,98050.0,98037.0,0.153002]
[1738700884354,0.004187,98048.0,98038.0,0.00120399]
[1738700884576,0.004187,98038.0,98016.0,0.00120397]
[1738700884874,0.004187,98038.0,98027.0,0.153018]
[1738700885057,0.004187,98038.0,98028.0,0.0012044]
[1738700885255,0.004187,98038.0,98029.0,0.204021]
[1738700885457,0.004187,98038.0,98034.0,0.153008]
[1738700885661,0.004187,98038.0,98035.0,0.15420919]
[1738700885907,0.004187,98038.0,98037.0,0.153003]
[1738700886114,0.004187,98038.0,98027.0,0.204024]
[1738700886115,0.004187,98038.0,98006.0,0.0001068]
[1738700886312,0.32115667,98050.0,98019.0,0.1035894]
[1738700886313,0.004187,98028.0,98019.0,0.1035894]
[1738700886516,0.004187,98028.0,98019.0,0.00120434]
[1738700886748,0.004187,98035.0,98020.0,0.10238506]
[1738700886984,0.004187,98023.0,98021.0,0.00120427]
[1738700887160,0.004187,98017.0,98006.0,0.0001068]
[1738700887364,0.004187,98011.0,98006.0,0.0001068]
[1738700887578,0.004187,98009.0,98006.0,0.0001068]
[1738700887724,0.004187,98007.0,98006.0,0.0001068]
[1738700888385,0.157237,98007.0,98006.0,0.0001068]
[1738700888585,0.004187,98007.0,98006.0,0.0001068]
[1738700888789,0.157237,98007.0,98006.0,0.0001068]
[1738700888986,0.004187,98007.0,98006.0,0.0001068]
[1738700889349,0.180237,98007.0,98006.0,0.0001068]
[1738700889532,0.004187,98007.0,98006.0,0.0001068]
[1738700889738,0.180237,98007.0,98006.0,0.0001068]
[1738700889935,0.004187,98007.0,98006.0,0.0001068]
[1738700890146,0.157237,98007.0,98006.0,0.0001068]
[1738700890556,0.004187,98007.0,98006.0,0.0001068]
[1738700890970,0.157237,98007.0,98006.0,0.0001068]
[1738700891168,0.004187,98007.0,98006.0,0.0001068]
[1738700891569,0.157237,98007.0,98006.0,0.0001068]
[1738700891772,0.180237,98007.0,98006.0,0.0001068]
[1738700891979,0.004187,98007.0,98006.0,0.0001068]
[1738700892339,0.407893,98065.0,98006.0,0.0001068]
[1738700892340,0.004187,98018.0,98017.0,0.153034]
[1738700892544,0.004187,98024.0,98017.0,0.0153034]
[1738700892760,0.004187,98034.0,98033.0,0.153009]
[1738700892960,0.203947,98065.0,98044.0,0.152992]
[1738700893201,0.004187,98056.0,98033.0,0.10238506]
[1738700893419,0.004187,98049.0,98047.0,0.152987]
[1738700893612,0.004187,98046.0,98034.0,0.10238506]
[1738700893812,0.004187,98042.0,98035.0,0.10238506]
[1738700893970,0.004187,98042.0,98041.0,0.152997]
[1738700894328,0.004187,98047.0,98046.0,0.152989]